fUSD/lending_fUSD_20240708
["ID","MTS","AMOUNT","RATE_DAILY","PERIOD"]
[331478048,1720437746323,-467.81349837,0.00049393,30]
[331478049,1720437746407,-254.75139199,0.00049428,30]
[331478050,1720437746495,-221.81039859,0.00049431,30]
[331478051,1720437746579,-161.77787719,0.00049436,30]
[331478052,1720437746670,-150.0,0.00049446,30]
[331478053,1720437746759,-3065.07536765,0.00049517,30]
[331478054,1720437746847,-467.81349837,0.00049524,30]
[331478055,1720437746933,-166.6666667,0.00049543,30]
[331478056,1720437747016,-166.6666667,0.0004957,30]
[331478057,1720437747100,-201.22,0.00049588,120]
[331478058,1720437747182,-500.0,0.00049589,120]
[331478059,1720437747264,-542.92,0.00049589,120]
[331478060,1720437747347,-500.0,0.00049589,120]
[331478061,1720437747426,-500.0,0.00049589,120]
[331478062,1720437747508,-500.0,0.00049589,120]
[331478063,1720437747589,-500.0,0.00049589,120]
[331478064,1720437747670,-972.54,0.00049589,120]
[331478065,1720437747751,-500.0,0.00049589,120]
[331478066,1720437747830,-500.0,0.00049589,120]
[331478067,1720437747916,-633.31,0.00049589,120]
[331478068,1720437748008,-500.0,0.00049589,120]
[331478069,1720437748099,-500.0,0.00049589,120]
[331478070,1720437748188,-500.0,0.00049589,120]
[331478071,1720437748271,-500.0,0.00049589,120]
[331478072,1720437748348,-701.47,0.00049589,120]
[331478073,1720437748431,-827.79,0.00049589,120]
[331478074,1720437748508,-1270.71,0.00049589,120]
[331478075,1720437748591,-500.0,0.00049589,120]
[331478076,1720437748676,-500.0,0.00049589,120]
[331478077,1720437748755,-500.0,0.00049589,120]
[331478078,1720437748845,-992.98,0.00049589,120]
[331478079,1720437748944,-500.0,0.00049589,120]
[331478080,1720437749104,-500.0,0.00049589,120]
[331478081,1720437749192,-2024.69,0.00049589,120]
[331478082,1720437749288,-500.0,0.00049589,120]
[331478083,1720437749384,-1741.22,0.00049589,120]
[331478084,1720437749485,-1766.13,0.00049589,120]
[331478085,1720437749574,-343.19893334,0.00049589,120]
[331478086,1720437749670,-1241.64,0.00049589,120]
[331478087,1720437749759,-1317.09,0.00049589,120]
[331478088,1720437749849,-915.9,0.00049589,120]
[331478089,1720437749942,-1264.41,0.00049589,120]
[331478090,1720437750033,-500.0,0.00049589,120]
[331478091,1720437750132,-500.0,0.00049589,120]
[331478092,1720437750222,-812.78,0.00049589,120]
[331478093,1720437750312,-500.0,0.00049589,120]
[331478094,1720437750406,-500.0,0.00049589,120]
[331478095,1720437750504,-500.0,0.00049589,120]
[331478096,1720437750596,-500.0,0.00049589,120]
[331478097,1720437750686,-597.99,0.00049589,120]
[331478098,1720437750772,-500.0,0.00049589,120]
[331478099,1720437750860,-500.0,0.00049589,120]
[331478100,1720437750951,-548.85,0.00049589,120]
[331478101,1720437751038,-500.0,0.00049589,120]
[331478102,1720437751126,-500.0,0.00049589,120]
[331478103,1720437751218,-500.0,0.00049589,120]
[331478104,1720437751308,-500.0,0.00049589,120]
[331478105,1720437752612,-592.5,0.00049589,120]
[331478106,1720437752708,-500.0,0.00049589,120]
[331478107,1720437752790,-500.0,0.00049589,120]
[331478108,1720437752878,-500.0,0.00049589,120]
[331478109,1720437752958,-500.0,0.00049589,120]
[331478110,1720437753038,-504.35951818,0.00049589,120]
[331478111,1720437753125,-500.0,0.00049589,120]
[331478112,1720437753218,-919.43,0.00049589,120]
[331478113,1720437753291,-500.0,0.00049589,120]
[331478114,1720437753372,-1634.54,0.00049589,120]
[331478115,1720437753450,-500.0,0.00049589,120]
[331478116,1720437753536,-1087.49,0.00049589,120]
[331478117,1720437753617,-511.65033492,0.00049589,120]
[331478118,1720437753695,-3540.48,0.00049589,120]
[331478119,1720437753774,-500.0,0.00049589,120]
[331478120,1720437753862,-602.54,0.00049589,120]
[331478121,1720437753950,-500.0,0.00049589,120]
[331478122,1720437754040,-558.45,0.00049589,120]
[331478123,1720437754132,-921.41,0.00049589,120]
[331478124,1720437754221,-978.12,0.00049589,120]
[331478125,1720437754313,-506.12223505,0.00049589,120]
[331478126,1720437754404,-1694.76,0.00049589,120]
[331478127,1720437754491,-500.0,0.00049589,120]
[331478128,1720437754593,-500.0,0.00049589,120]
[331478129,1720437754692,-504.09740814,0.00049589,120]
[331478130,1720437754778,-500.0,0.00049589,120]
[331478131,1720437754858,-500.0,0.00049589,120]
[331478132,1720437754943,-500.0,0.00049589,120]
[331478133,1720437755026,-500.0,0.00049589,120]
[331478134,1720437755110,-500.0,0.00049589,120]
[331478135,1720437755196,-1886.47,0.00049589,120]
[331478136,1720437755277,-1514.14,0.00049589,120]
[331478137,1720437755365,-500.0,0.00049589,120]
[331478138,1720437755452,-506.05585961,0.00049589,120]
[331478139,1720437755541,-681.95,0.00049589,120]
[331478140,1720437755623,-521.67,0.00049589,120]
[331478141,1720437755706,-500.0,0.00049589,120]
[331478142,1720437755787,-500.0,0.00049589,120]
[331478143,1720437755865,-500.0,0.00049589,120]
[331478144,1720437755951,-500.0,0.00049589,120]
[331478145,1720437756030,-1119.43,0.00049589,120]
[331478146,1720437756108,-500.0,0.00049589,120]
[331478147,1720437756189,-500.0,0.00049589,120]
[331478148,1720437756269,-500.0,0.00049589,120]
[331478149,1720437756350,-512.12497398,0.00049589,120]
[331478150,1720437756432,-612.16,0.00049589,120]
[331478151,1720437756512,-500.0,0.00049589,120]
[331478152,1720437756597,-500.0,0.00049589,120]
[331478153,1720437756677,-1022.7,0.00049589,120]
[331478154,1720437756758,-500.0,0.00049589,120]
[331478155,1720437756840,-902.66,0.00049589,120]
[331478156,1720437756919,-500.0,0.00049589,120]
[331478157,1720437756998,-500.0,0.00049589,120]
[331478158,1720437757084,-500.0,0.00049589,120]
[331478159,1720437757163,-859.41,0.00049589,120]
[331478160,1720437757241,-500.0,0.00049589,120]
[331478161,1720437757319,-715.44,0.00049589,120]
[331478162,1720437757396,-500.0,0.00049589,120]
[331478163,1720437757478,-2590.86,0.00049589,120]
[331478164,1720437757559,-1650.74,0.00049589,120]
[331478165,1720437757638,-504.64550853,0.00049589,120]
[331478166,1720437757719,-526.49296914,0.00049589,120]
[331478167,1720437757796,-500.0,0.00049589,120]
[331478168,1720437757876,-500.0,0.00049589,120]
[331478169,1720437757960,-500.0,0.00049589,120]
[331478170,1720437758037,-809.57,0.00049589,120]
[331478171,1720437758124,-1041.8,0.00049589,120]
[331478172,1720437758218,-500.0,0.00049589,120]
[331478173,1720437758311,-934.27,0.00049589,120]
[331478174,1720437758395,-500.0,0.00049589,120]
[331478175,1720437758472,-500.0,0.00049589,120]
[331478176,1720437758547,-1534.87,0.00049589,120]
[331478177,1720437758627,-500.0,0.00049589,120]
[331478178,1720437758707,-500.0,0.00049589,120]
[331478179,1720437758784,-949.65,0.00049589,120]
[331478180,1720437758876,-5589.44,0.00049589,120]
[331478181,1720437758960,-1826.92,0.00049589,120]
[331478182,1720437759050,-577.35949257,0.00049589,120]
[331478183,1720437759148,-500.0,0.00049589,120]
[331478184,1720437759376,-924.87,0.00049589,120]
[331478185,1720437759468,-2632.81,0.00049589,120]
[331478186,1720437759558,-2163.26,0.00049589,120]
[331478187,1720437759650,-611.62,0.00049589,120]
[331478188,1720437759738,-500.0,0.00049589,120]
[331478189,1720437759827,-500.0,0.00049589,120]
[331478190,1720437759921,-500.0,0.00049589,120]
[331478191,1720437760013,-500.0,0.00049589,120]
[331478192,1720437760101,-500.0,0.00049589,120]
[331478193,1720437760193,-500.0,0.00049589,120]
[331478194,1720437760284,-5715.07,0.00049589,120]
[331478195,1720437760374,-500.0,0.00049589,120]
[331478196,1720437760465,-500.0,0.00049589,120]
[331478197,1720437760555,-500.0,0.00049589,120]
[331478198,1720437760646,-2300.26,0.00049589,120]
[331478199,1720437760736,-2711.84,0.00049589,120]
[331478200,1720437760822,-500.0,0.00049589,120]
[331478201,1720437760909,-1937.19,0.00049589,120]
[331478202,1720437760996,-500.0,0.00049589,120]
[331478203,1720437761084,-500.0,0.00049589,120]
[331478204,1720437761184,-500.0,0.00049589,120]
[331478205,1720437761269,-500.0,0.00049589,90]
[331478206,1720437761359,-932.59,0.00049589,120]
[331478207,1720437761443,-500.0,0.00049589,120]
[331478208,1720437761524,-500.0,0.00049589,120]
[331478209,1720437761607,-5413.85,0.00049589,120]
[331478210,1720437761685,-500.0,0.00049589,120]
[331478211,1720437761767,-2614.96,0.00049589,120]
[331478212,1720437761849,-500.0,0.00049589,120]
[331478213,1720437761939,-500.0,0.00049589,120]
[331478214,1720437762027,-500.0,0.00049589,120]
[331478215,1720437762114,-2148.51,0.00049589,120]
[331478216,1720437762210,-500.0,0.00049589,120]
[331478217,1720437762296,-500.0,0.00049589,120]
[331478218,1720437762380,-500.0,0.00049589,120]
[331478219,1720437762463,-500.0,0.00049589,120]
[331478220,1720437762550,-633.82,0.00049589,120]
[331478221,1720437762634,-500.0,0.00049589,120]
[331478222,1720437762719,-500.0,0.00049589,120]
[331478223,1720437762805,-500.0,0.00049589,120]
[331478224,1720437762889,-1837.33,0.00049589,120]
[331478225,1720437762976,-500.0,0.00049589,120]
[331478226,1720437763059,-5053.13,0.00049589,120]
[331478227,1720437763142,-500.0,0.00049589,120]
[331478228,1720437763237,-500.0,0.00049589,120]
[331478229,1720437763336,-503.0381276,0.00049589,120]
[331478230,1720437763422,-500.0,0.00049589,120]
[331478231,1720437763503,-1305.54,0.00049589,120]
[331478232,1720437763586,-500.0,0.00049589,120]
[331478233,1720437763666,-500.0,0.00049589,120]
[331478234,1720437763750,-501.36,0.00049589,120]
[331478235,1720437763850,-500.0,0.00049589,120]
[331478236,1720437763946,-500.0,0.00049589,120]
[331478237,1720437764044,-6452.68,0.00049589,120]
[331478238,1720437764145,-522.56,0.00049589,120]
[331478239,1720437764248,-500.0,0.00049589,120]
[331478240,1720437764338,-500.0,0.00049589,120]
[331478241,1720437764430,-2323.52,0.00049589,120]
[331478242,1720437764526,-500.0,0.00049589,120]
[331478243,1720437764634,-500.0,0.00049589,120]
[331478244,1720437764720,-1448.04,0.00049589,120]
[331478245,1720437764811,-2564.45,0.00049589,120]
[331478246,1720437764900,-852.59,0.00049589,120]
[331478247,1720437764986,-3026.79,0.00049589,120]
[331478248,1720437765070,-500.0,0.00049589,120]
[331478249,1720437765152,-500.0,0.00049589,120]
[331478250,1720437765234,-500.0,0.00049589,120]
[331478251,1720437765318,-2132.97,0.00049589,120]
[331478252,1720437765397,-500.0,0.00049589,120]
[331478253,1720437765480,-684.14,0.00049589,120]
[331478254,1720437765567,-500.0,0.00049589,120]
[331478255,1720437765653,-500.0,0.00049589,120]
[331478256,1720437765737,-500.0,0.00049589,120]
[331478257,1720437765824,-258.32432522,0.00049589,120]
[331478258,1720437765905,-299.89447939,0.00049589,120]
[331478259,1720437765988,-2437.77,0.00049589,120]
[331478260,1720437766069,-3755.37,0.00049589,120]
[331478261,1720437766153,-679.05,0.00049589,120]
[331478262,1720437766236,-500.0,0.00049589,120]
[331478263,1720437766322,-2109.64,0.00049589,120]
[331478264,1720437766409,-2378.13,0.00049589,120]
[331478265,1720437766495,-600.73,0.00049589,120]
[331478266,1720437766593,-502.13239846,0.00049589,120]
[331478267,1720437766678,-578.68,0.00049589,120]
[331478268,1720437766773,-504.05870293,0.00049589,120]
[331478269,1720437766859,-1115.3,0.00049589,120]
[331478270,1720437766945,-500.0,0.00049589,120]
[331478271,1720437767034,-3422.97,0.00049589,120]
[331478272,1720437767119,-4381.13,0.00049589,120]
[331478273,1720437767524,-500.0,0.00049589,120]
[331478274,1720437767602,-500.0,0.00049589,120]
[331478275,1720437767684,-1725.52,0.00049589,120]
[331478276,1720437767769,-500.0,0.00049589,120]
[331478277,1720437767852,-1546.7,0.00049589,120]
[331478278,1720437767936,-500.0,0.00049589,120]
[331478279,1720437768024,-500.0,0.00049589,120]
[331478280,1720437768114,-723.07,0.00049589,120]
[331478281,1720437768205,-1003.07,0.00049589,120]
[331478282,1720437768286,-500.0,0.00049589,120]
[331478283,1720437768364,-981.91,0.00049589,120]
[331478284,1720437768437,-500.0,0.00049589,120]
[331478285,1720437768514,-500.0,0.00049589,120]
[331478286,1720437768593,-500.0,0.00049589,120]
[331478287,1720437768676,-2363.75,0.00049589,120]
[331478288,1720437768759,-3222.75,0.00049589,120]
[331478289,1720437768852,-1704.29,0.00049589,120]
[331478290,1720437768943,-622.24,0.00049589,120]
[331478291,1720437769035,-500.0,0.00049589,120]
[331478292,1720437769132,-500.0,0.00049589,120]
[331478293,1720437769227,-500.0,0.00049589,120]
[331478294,1720437769317,-500.0,0.00049589,120]
[331478295,1720437769410,-594.22309893,0.00049589,120]
[331478296,1720437769502,-500.0,0.00049589,120]
[331478297,1720437769588,-500.0,0.00049589,120]
[331478298,1720437769681,-745.91,0.00049589,120]
[331478299,1720437769775,-500.0,0.00049589,120]
[331478300,1720437769869,-1103.11,0.00049589,120]
[331478301,1720437769955,-594.32,0.00049589,120]
[331478302,1720437770044,-500.0,0.00049589,120]
[331478303,1720437770133,-870.94,0.00049589,120]
[331478304,1720437770226,-578.98,0.00049589,120]
[331478305,1720437770313,-152.47761122,0.00049589,120]
[331478306,1720437770400,-1252.99,0.00049589,120]
[331478307,1720437770485,-502.67215848,0.00049589,120]
[331478308,1720437770571,-623.11,0.00049589,120]
[331478309,1720437770663,-500.0,0.00049589,120]
[331478310,1720437770754,-500.0,0.00049589,120]
[331478311,1720437770838,-500.0,0.00049589,120]
[331478312,1720437770924,-1347.4,0.00049589,120]
[331478313,1720437771012,-305.03440766,0.00049589,120]
[331478314,1720437771098,-500.0,0.00049589,120]
[331478315,1720437771182,-500.0,0.00049589,120]
[331478316,1720437771266,-550.29105135,0.00049589,120]
[331478317,1720437771351,-500.0,0.00049589,120]
[331478318,1720437771441,-2724.16,0.00049589,120]
[331478319,1720437771522,-228.54023863,0.00049589,120]
[331478320,1720437771604,-1072.49,0.00049589,120]
[331478321,1720437771693,-500.0,0.00049589,120]
[331478322,1720437771778,-652.48,0.00049589,120]
[331478323,1720437771867,-503.76056691,0.00049589,120]
[331478324,1720437771955,-560.3,0.00049589,120]
[331478325,1720437772043,-1040.65,0.00049589,120]
[331478326,1720437772122,-978.58,0.00049589,120]
[331478327,1720437772198,-500.0,0.00049589,120]
[331478328,1720437772277,-1928.13,0.00049589,120]
[331478329,1720437772353,-2087.12,0.00049589,120]
[331478330,1720437772432,-500.0,0.00049589,120]
[331478331,1720437772510,-500.0,0.00049589,120]
[331478332,1720437772590,-850.93,0.00049589,120]
[331478333,1720437772679,-500.0,0.00049589,120]
[331478334,1720437772763,-500.0,0.00049589,120]
[331478335,1720437772843,-3350.93,0.00049589,120]
[331478336,1720437772925,-555.79,0.00049589,120]
[331478337,1720437773006,-500.0,0.00049589,120]
[331478338,1720437773084,-572.69,0.00049589,120]
[331478339,1720437773164,-2995.53,0.00049589,120]
[331478340,1720437773245,-1043.43,0.00049589,120]
[331478341,1720437773323,-500.0,0.00049589,120]
[331478342,1720437773402,-500.0,0.00049589,120]
[331478343,1720437773488,-1696.47,0.00049589,120]
[331478344,1720437773573,-2154.95,0.00049589,120]
[331478345,1720437773739,-500.0,0.00049589,120]
[331478346,1720437773832,-500.0,0.00049589,120]
[331478347,1720437773935,-500.0,0.00049589,120]
[331478348,1720437774035,-1736.52,0.00049589,120]
[331478349,1720437774130,-500.0,0.00049589,120]
[331478350,1720437774234,-1201.37,0.00049589,120]
[331478351,1720437774330,-1292.22,0.00049589,120]
[331478352,1720437774425,-2019.87,0.00049589,120]
[331478353,1720437774519,-500.0,0.00049589,120]
[331478354,1720437774603,-500.0,0.00049589,120]
[331478355,1720437774694,-557.25,0.00049589,120]
[331478356,1720437774789,-500.0,0.00049589,120]
[331478357,1720437774874,-487.89005814,0.00049589,120]
[331478358,1720437774955,-500.0,0.00049589,120]
[331478359,1720437775036,-500.0,0.00049589,120]
[331478360,1720437775117,-1700.15,0.00049589,120]
[331478361,1720437775204,-500.0,0.00049589,120]
[331478362,1720437775292,-653.46,0.00049589,120]
[331478363,1720437775379,-1020.7,0.00049589,120]
[331478364,1720437775466,-500.0,0.00049589,120]
[331478365,1720437775555,-1896.85,0.00049589,120]
[331478366,1720437775641,-1092.14,0.00049589,120]
[331478367,1720437775729,-731.92,0.00049589,120]
[331478368,1720437775819,-515.36,0.00049589,120]
[331478369,1720437775905,-500.0,0.00049589,120]
[331478370,1720437775994,-1307.68,0.00049589,120]
[331478371,1720437776085,-2252.93,0.00049589,120]
[331478372,1720437776170,-1070.52,0.00049589,120]
[331478373,1720437776251,-500.0,0.00049589,120]
[331478374,1720437776334,-783.21,0.00049589,120]
[331478375,1720437776420,-500.0,0.00049589,120]
[331478376,1720437776504,-1541.2,0.00049589,120]
[331478377,1720437776593,-500.0,0.00049589,120]
[331478378,1720437776681,-500.0,0.00049589,120]
[331478379,1720437776763,-813.62,0.00049589,120]
[331478380,1720437776845,-500.0,0.00049589,120]
[331478381,1720437776925,-1354.07,0.00049589,120]
[331478382,1720437777010,-500.0,0.00049589,120]
[331478383,1720437777098,-1944.43,0.00049589,120]
[331478384,1720437777182,-1435.39,0.00049589,120]
[331478385,1720437777267,-500.0,0.00049589,120]
[331478386,1720437777346,-500.0,0.00049589,120]
[331478387,1720437777427,-564.74,0.00049589,120]
[331478388,1720437777514,-3221.71,0.00049589,120]
[331478389,1720437777594,-500.0,0.00049589,120]
[331478390,1720437777675,-1146.18,0.00049589,120]
[331478391,1720437777763,-2937.28,0.00049589,120]
[331478392,1720437777859,-571.00955204,0.00049589,120]
[331478393,1720437777951,-500.0,0.00049589,120]
[331478394,1720437778025,-1136.03,0.00049589,120]
[331478395,1720437778101,-500.0,0.00049589,120]
[331478396,1720437778180,-500.0,0.00049589,120]
[331478397,1720437778261,-500.0,0.00049589,120]
[331478398,1720437778335,-500.0,0.00049589,120]
[331478399,1720437778411,-763.67,0.00049589,120]
[331478400,1720437778484,-2022.23,0.00049589,120]
[331478401,1720437778558,-2504.19,0.00049589,120]
[331478402,1720437778635,-1121.35,0.00049589,120]
[331478403,1720437778709,-500.0,0.00049589,120]
[331478404,1720437778785,-2000.0,0.00049589,120]
[331478405,1720437778874,-636.86,0.00049589,120]
[331478406,1720437778960,-500.0,0.00049589,120]
[331478407,1720437779048,-500.0,0.00049589,120]
[331478408,1720437779133,-2946.62,0.00049589,120]
[331478409,1720437779223,-500.0,0.00049589,120]
[331478410,1720437779310,-500.0,0.00049589,120]
[331478411,1720437779401,-524.75,0.00049589,120]
[331478412,1720437779492,-500.0,0.00049589,120]
[331478413,1720437779572,-920.01,0.00049589,120]
[331478414,1720437779649,-504.15455906,0.00049589,120]
[331478415,1720437779729,-1715.47,0.00049589,120]
[331478416,1720437779810,-504.5418072,0.00049589,120]
[331478417,1720437779892,-500.0,0.00049589,120]
[331478418,1720437779974,-2292.61,0.00049589,120]
[331478419,1720437780058,-1256.24,0.00049589,120]
[331478420,1720437780144,-650.27,0.00049589,120]
[331478421,1720437780247,-1240.02,0.00049589,120]
[331478422,1720437780343,-502.08628602,0.00049589,120]
[331478423,1720437780431,-500.0,0.00049589,120]
[331478424,1720437780516,-500.0,0.00049589,120]
[331478425,1720437780600,-2191.34,0.00049589,120]
[331478426,1720437780686,-500.0,0.00049589,120]
[331478427,1720437780769,-500.0,0.00049589,120]
[331478428,1720437780848,-526.64,0.00049589,120]
[331478429,1720437780931,-518.09,0.00049589,120]
[331478430,1720437781017,-568.97,0.00049589,120]
[331478431,1720437781100,-3070.37,0.00049589,120]
[331478432,1720437781190,-500.0,0.00049589,120]
[331478433,1720437781273,-500.0,0.00049589,120]
[331478434,1720437781351,-500.0,0.00049589,120]
[331478435,1720437781434,-500.0,0.00049589,120]
[331478436,1720437781515,-500.0,0.00049589,120]
[331478437,1720437781603,-500.0,0.00049589,120]
[331478438,1720437781690,-4241.64,0.00049589,120]
[331478439,1720437781770,-500.0,0.00049589,120]
[331478440,1720437781858,-500.0,0.00049589,120]
[331478441,1720437781949,-500.0,0.00049589,120]
[331478442,1720437782037,-500.0,0.00049589,120]
[331478443,1720437782126,-729.55,0.00049589,120]
[331478444,1720437782204,-976.49,0.00049589,120]
[331478445,1720437782282,-500.0,0.00049589,120]
[331478446,1720437782363,-500.0,0.00049589,120]
[331478447,1720437782447,-1113.74,0.00049589,120]
[331478448,1720437782526,-1483.16,0.00049589,120]
[331478449,1720437782736,-500.0,0.00049589,120]
[331478450,1720437782826,-500.0,0.00049589,120]
[331478451,1720437782905,-500.0,0.00049589,120]
[331478452,1720437782995,-500.0,0.00049589,120]
[331478453,1720437783067,-581.75,0.00049589,120]
[331478454,1720437783145,-500.0,0.00049589,120]
[331478455,1720437783220,-4772.77,0.00049589,120]
[331478456,1720437783294,-1414.85,0.00049589,120]
[331478457,1720437783365,-2401.33,0.00049589,120]
[331478458,1720437783441,-500.0,0.00049589,120]
[331478459,1720437783517,-500.0,0.00049589,120]
[331478460,1720437783591,-500.0,0.00049589,120]
[331478461,1720437783667,-1051.68,0.00049589,120]
[331478462,1720437783752,-500.0,0.00049589,120]
[331478463,1720437783838,-500.0,0.00049589,120]
[331478464,1720437783929,-500.0,0.00049589,120]
[331478465,1720437784018,-500.0,0.00049589,120]
[331478466,1720437784106,-1285.43,0.00049589,120]
[331478467,1720437784198,-500.0,0.00049589,120]
[331478468,1720437784285,-553.77,0.00049589,120]
[331478469,1720437784377,-2490.53,0.00049589,120]
[331478470,1720437784471,-1019.44,0.00049589,120]
[331478471,1720437784549,-500.0,0.00049589,120]
[331478472,1720437784630,-790.33,0.00049589,120]
[331478473,1720437784709,-2000.0,0.00049589,30]
[331478474,1720437784788,-1358.01,0.00049589,120]
[331478475,1720437784866,-625.62,0.00049589,120]
[331478476,1720437784947,-597.33,0.00049589,120]
[331478477,1720437785027,-755.84,0.00049589,120]
[331478478,1720437785105,-648.43805168,0.00049589,120]
[331478479,1720437785182,-500.0,0.00049589,120]
[331478480,1720437785267,-500.0,0.00049589,120]
[331478481,1720437785345,-500.0,0.00049589,120]
[331478482,1720437785423,-1117.85,0.00049589,120]
[331478483,1720437785504,-838.12,0.00049589,120]
[331478484,1720437785580,-500.0,0.00049589,120]
[331478485,1720437785658,-500.0,0.00049589,120]
[331478486,1720437785738,-1091.2,0.00049589,120]
[331478487,1720437785814,-757.21,0.00049589,120]
[331478488,1720437785891,-1226.58,0.00049589,120]
[331478489,1720437785970,-2659.39,0.00049589,120]
[331478490,1720437786048,-500.0,0.00049589,120]
[331478491,1720437786127,-500.0,0.00049589,120]
[331478492,1720437786207,-500.0,0.00049589,120]
[331478493,1720437786285,-574.03,0.00049589,120]
[331478494,1720437786360,-500.0,0.00049589,120]
[331478495,1720437786439,-500.0,0.00049589,120]
[331478496,1720437786516,-1418.14,0.00049589,120]
[331478497,1720437786593,-5287.79,0.00049589,120]
[331478498,1720437786671,-664.42,0.00049589,120]
[331478499,1720437786747,-4533.03,0.00049589,120]
[331478500,1720437786826,-529.96,0.00049589,120]
[331478501,1720437786908,-624.06,0.00049589,120]
[331478502,1720437786988,-500.0,0.00049589,120]
[331478503,1720437787065,-2187.04,0.00049589,120]
[331478504,1720437787140,-500.0,0.00049589,120]
[331478505,1720437787224,-609.48,0.00049589,120]
[331478506,1720437787306,-500.0,0.00049589,120]
[331478507,1720437787382,-4408.15,0.00049589,120]
[331478508,1720437787468,-1837.3,0.00049589,120]
[331478509,1720437787550,-1202.89,0.00049589,120]
[331478510,1720437787631,-500.0,0.00049589,120]
[331478511,1720437787705,-500.0,0.00049589,120]
[331478512,1720437787776,-500.0,0.00049589,120]
[331478513,1720437787855,-337.25827145,0.00049589,120]
[331478514,1720437787929,-665.02,0.00049589,120]
[331478515,1720437788001,-500.0,0.00049589,120]
[331478516,1720437788074,-155.45331244,0.00049589,120]
[331478517,1720437788148,-973.5,0.00049589,120]
[331478518,1720437788216,-500.0,0.00049589,120]
[331478519,1720437788290,-500.0,0.00049589,120]
[331478520,1720437788363,-500.0,0.00049589,120]
[331478521,1720437788434,-500.0,0.00049589,120]
[331478522,1720437788505,-872.39,0.00049589,120]
[331478523,1720437788583,-1140.41,0.00049589,120]
[331478524,1720437788676,-3258.9,0.00049589,120]
[331478525,1720437788753,-500.0,0.00049589,120]
[331478526,1720437788841,-909.76,0.00049589,120]
[331478527,1720437788934,-500.0,0.00049589,120]
[331478528,1720437789023,-500.0,0.00049589,120]
[331478529,1720437789117,-500.0,0.00049589,120]
[331478530,1720437789210,-500.0,0.00049589,120]
[331478531,1720437789304,-531.73,0.00049589,120]
[331478532,1720437789397,-1448.05,0.00049589,120]
[331478533,1720437789505,-500.0,0.00049589,120]
[331478534,1720437789591,-157.72635701,0.00049589,120]
[331478535,1720437789676,-4751.75,0.00049589,120]
[331478536,1720437789762,-1743.78,0.00049589,120]
[331478537,1720437790188,-1331.04,0.00049589,120]
[331478538,1720437790284,-500.0,0.00049589,120]
[331478539,1720437790365,-500.0,0.00049589,120]
[331478540,1720437790448,-673.04,0.00049589,120]
[331478541,1720437790526,-500.0,0.00049589,120]
[331478542,1720437790614,-907.76,0.00049589,120]
[331478543,1720437790700,-500.0,0.00049589,120]
[331478544,1720437790787,-500.0,0.00049589,120]
[331478545,1720437790871,-500.0,0.00049589,120]
[331478546,1720437790954,-3812.34,0.00049589,120]
[331478547,1720437791033,-500.0,0.00049589,120]